bitfinex/quotes_ETHUSD_20240822
["timestamp","ask_amount","ask_price","bid_price","bid_amount"]
[1724285094361,0.39682279,2634.8,2634.6,2.3532]
[1724285101372,3.79549,2634.7,2634.6,2.3532]
[1724285101567,4.19228279,2634.8,2634.6,2.3532]
[1724285102077,3.79549,2634.7,2634.6,2.3532]
[1724285102269,3.79549,2634.7,2634.1,3.79626]
[1724285102270,3.79549,2634.7,2634.2,2.3535]
[1724285102898,3.79568,2634.6,2634.2,2.3535]
[1724285103206,4.19228279,2634.8,2634.2,2.3535]
[1724285103498,3.7955,2634.7,2634.3,2.4328]
[1724285103698,4.19228279,2634.8,2634.3,2.4328]
[1724285103913,7.98772279,2634.8,2634.3,2.4328]
[1724285104074,4.19226279,2634.8,2634.3,2.4328]
[1724285104576,1.621,2634.7,2634.3,2.4328]
[1724285104776,5.41651,2634.7,2634.3,2.4328]
[1724285105494,1.621,2634.7,2634.3,2.4328]
[1724285105659,5.41649,2634.7,2634.3,2.4328]
[1724285106277,1.621,2634.7,2634.3,2.4328]
[1724285107994,1.621,2634.7,2634.3,6.22885]
[1724285108309,1.621,2634.7,2634.4,2.2827]
[1724285108859,0.39682279,2634.8,2634.5,2.2827]
[1724285109014,0.39682279,2634.8,2634.7,9.87368]
[1724285109217,3.79399,2635.8,2635.2,2.2827]
[1724285109218,1.621,2635.7,2635.2,2.2827]
[1724285109389,0.3968003,2635.4,2635.3,2.2827]
[1724285114510,4.1912903,2635.4,2635.0,2.3043]
[1724285115401,0.3968003,2635.4,2635.0,2.3043]
[1724285116203,0.3968003,2635.4,2635.0,6.09929]
[1724285116496,0.3968003,2635.4,2635.1,2.3323]
[1724285121339,8.40508133,2635.4,2634.9,2.3368]
[1724285121650,3.79464,2635.3,2634.9,2.3368]
[1724285122544,4.61039133,2635.4,2634.9,2.3368]
[1724285122699,4.61039133,2635.4,2634.9,6.132]
[1724285123349,0.3968003,2635.4,2635.0,2.3971]
[1724285123709,0.3968003,2635.4,2635.0,6.19215]
[1724285123977,0.3968003,2635.4,2635.0,2.3971]
[1724285124318,4.1913803,2635.4,2635.0,2.3971]
[1724285124819,3.79486,2635.2,2634.8,2.3971]
[1724285125499,0.39682965,2635.1,2634.8,2.3971]
[1724285125672,0.39682965,2635.1,2635.0,3.79506]
[1724285126021,0.39682965,2635.1,2635.0,2.4947]
[1724285126186,0.39682965,2635.1,2635.0,6.28976]
[1724285126790,0.39682965,2635.1,2635.0,11.093316]
[1724285132198,0.39682965,2635.1,2635.0,14.093316]
[1724285133141,3.79339,2636.2,2635.5,3.79424]
[1724285133339,3.79339,2636.2,2635.6,6.21709]
[1724285133635,0.09826008,2636.1,2635.6,6.21709]
[1724285133843,0.49510434,2636.1,2635.6,6.21709]
[1724285134822,4.28860434,2636.1,2635.6,6.21709]
[1724285135050,5.33647377,2636.1,2635.6,2.4229]
[1724285135625,1.54297377,2636.1,2635.6,6.21696]
[1724285135933,0.49510434,2636.1,2635.7,3.79404]
[1724285136612,0.49510434,2636.1,2635.6,2.4229]
[1724285137311,0.49510434,2636.1,2635.6,6.21706]
[1724285138416,0.49510434,2636.1,2635.6,2.4229]
[1724285141429,0.49510434,2636.1,2635.6,6.21707]
[1724285142452,1.619,2636.0,2635.6,6.21707]
[1724285142672,0.09823506,2635.9,2635.6,6.21707]
[1724285143392,0.09823506,2635.9,2635.6,2.4229]
[1724285143951,1.619,2635.8,2635.6,2.4229]
[1724285144154,1.619,2635.8,2635.6,6.21709]
[1724285144379,0.09804429,2635.7,2635.6,6.21709]
[1724285144750,1.619,2636.0,2635.6,6.21709]
[1724285144957,0.09804429,2635.7,2635.6,6.21709]
[1724285145154,1.619,2636.0,2635.6,6.21709]
[1724285145782,0.09823506,2635.9,2635.6,6.21709]
[1724285148908,0.09823506,2635.9,2635.6,2.4229]
[1724285149077,0.39681036,2635.8,2635.6,2.4229]
[1724285149284,0.09819839,2635.7,2635.6,6.21708]
[1724285149435,0.39681036,2635.8,2635.6,6.21708]
[1724285149636,0.09819839,2635.7,2635.6,6.21708]
[1724285149833,0.39681036,2635.8,2635.6,6.21708]
[1724285150154,0.09819839,2635.7,2635.6,6.21708]
[1724285150570,0.39681036,2635.8,2635.6,6.21708]
[1724285150731,0.09819839,2635.7,2635.6,6.21708]
[1724285151170,0.39681036,2635.8,2635.6,6.21708]
[1724285151372,0.09819839,2635.7,2635.6,6.21708]
[1724285151548,0.09819839,2635.7,2635.1,5.79417]
[1724285151549,0.09819839,2635.7,2635.4,3.79439]
[1724285151847,0.39681036,2635.8,2635.7,3.79405]
[1724285154080,0.39681036,2635.8,2635.7,6.09515]
[1724285158711,0.39681036,2635.8,2635.7,2.3011]
[1724285158914,0.39681036,2635.8,2635.6,3.79418]
[1724285159723,0.39681036,2635.8,2635.5,2.2958]
[1724285159919,0.39681036,2635.8,2635.5,6.09013]
[1724285160115,0.39681036,2635.8,2635.5,2.2958]
[1724285160285,2.01581036,2635.8,2635.5,2.2958]
[1724285160487,2.5967574,2635.8,2635.4,3.79439]
[1724285161040,1.619,2635.6,2635.3,2.2958]
[1724285161198,1.619,2635.6,2635.1,6.28564]
[1724285161398,0.09810648,2635.5,2635.1,6.28564]
[1724285161600,1.619,2635.6,2635.1,6.28564]
[1724285161786,2.50313474,2635.6,2635.1,3.79484]
[1724285162833,6.29734474,2635.6,2635.1,3.79484]
[1724285163243,0.09808722,2635.5,2635.1,3.79484]
[1724285163889,1.619,2635.2,2634.9,7.49]
[1724285164123,1.619,2635.0,2634.5,3.79566]
[1724285164284,0.096959,2634.9,2634.7,7.59086]
[1724285164644,0.096959,2634.9,2634.8,3.79535]
[1724285165124,0.09682796,2634.9,2634.8,3.79535]
[1724285165428,0.39683636,2635.1,2634.8,3.79535]
[1724285165635,0.09682796,2634.9,2634.8,3.79535]
[1724285165928,0.09682796,2634.9,2634.7,6.11788]
[1724285166284,0.39683636,2635.1,2634.7,6.11788]
[1724285166492,0.09681934,2635.0,2634.7,6.11788]
[1724285166785,0.09681934,2635.0,2634.7,9.91329]
[1724285167224,0.09681934,2635.0,2634.8,3.79531]
[1724285167642,0.09681934,2635.0,2634.9,3.79521]
[1724285168093,0.09681934,2635.0,2634.9,10.75453477]
[1724285170655,0.09681934,2635.0,2634.9,6.95932477]
[1724285174380,0.09681934,2635.0,2634.8,3.79533]
[1724285174675,0.09681934,2635.0,2634.6,3.79555]
[1724285175047,0.09681934,2635.0,2634.6,23.23555]
[1724285175563,0.39683636,2635.1,2634.6,23.23555]
[1724285176146,0.39683636,2635.1,2634.6,23.23554]
[1724285176699,0.39683636,2635.1,2634.6,27.03108]
[1724285176908,0.39683636,2635.1,2634.7,3.79549]
[1724285179078,0.09699219,2635.0,2634.7,3.79549]
[1724285179860,0.09699219,2635.0,2634.9,9.87862]
[1724285182015,0.09699219,2635.0,2634.9,13.67383]
[1724285182426,0.39683636,2635.1,2635.0,7.59012]
[1724285182971,0.39683636,2635.1,2635.0,3.79506]
[1724285183163,0.49363938,2635.1,2635.0,3.79506]
[1724285183402,0.49363938,2635.1,2635.0,4.982825]
[1724285183711,0.39683636,2635.1,2635.0,4.982825]
[1724285184348,0.39683636,2635.1,2634.9,6.08329]
[1724285184511,0.39683636,2635.1,2634.9,3.79509]
[1724285184707,0.39683636,2635.1,2634.9,7.59022]
[1724285184708,0.09680394,2635.0,2634.9,7.59022]
[1724285184910,0.09680394,2635.0,2634.9,10.59022]
[1724285185121,0.09680394,2635.0,2634.8,3.79534]
[1724285185425,0.09680394,2635.0,2634.6,3.79552]
[1724285186036,0.09680394,2635.0,2634.7,3.7954]
[1724285186238,0.09680394,2635.0,2634.5,3.9169]
[1724285186407,0.09680394,2635.0,2634.8,6.21342]
[1724285186744,0.09680394,2635.0,2634.9,3.79521]
[1724285188246,0.09680394,2635.0,2634.9,7.59042]
[1724285188398,0.09680394,2635.0,2634.9,9.20942]
[1724285188605,0.39683636,2635.1,2635.0,7.59012]
[1724285188845,0.39683636,2635.1,2635.0,9.158764]
[1724285192153,0.39683636,2635.1,2635.0,9.539064]
[1724285196862,0.39683636,2635.1,2635.0,15.704124]
[1724285197161,0.39683636,2635.1,2635.0,20.02365066]
[1724285197965,0.39683636,2635.1,2635.0,20.02364762]
[1724285199286,0.39683636,2635.1,2635.0,18.704124]
[1724285200119,0.39683636,2635.1,2635.0,14.909064]
[1724285200730,0.39683636,2635.1,2635.0,10.97042]
[1724285201091,0.49365531,2635.1,2635.0,10.97042]
[1724285201291,0.39683636,2635.1,2635.0,10.97042]
[1724285201542,0.49367458,2635.1,2635.0,10.97042]
[1724285201848,0.39683636,2635.1,2635.0,10.97042]
[1724285202340,0.39683636,2635.1,2635.0,12.464382]
[1724285203249,0.39683636,2635.1,2635.0,10.97042]
[1724285203842,0.49367458,2635.1,2635.0,10.59012]
[1724285204024,0.49367458,2635.1,2635.0,6.79506]
[1724285204346,0.39683636,2635.1,2634.8,3.79526]
[1724285205367,0.39683636,2635.1,2634.6,6.79558]
[1724285205368,2.37766569,2635.0,2634.6,3.79558]
[1724285205508,2.8170159,2635.0,2634.6,3.79558]
[1724285205695,2.72035021,2635.0,2634.6,3.79558]
[1724285205895,2.72035021,2635.0,2634.6,3.79554]
[1724285206096,2.281,2635.0,2634.7,3.7954]
[1724285207016,0.39683636,2635.1,2634.8,3.79533]
[1724285207326,0.09666184,2635.0,2634.9,3.79521]
[1724285208997,0.09666184,2635.0,2634.9,9.90472]
[1724285209340,0.09666184,2635.0,2634.9,8.780822]
[1724285209523,0.39683636,2635.1,2635.0,3.79506]
[1724285210441,0.49337015,2635.1,2635.0,3.79506]
[1724285213137,0.49337015,2635.1,2634.8,3.79523]
[1724285213862,2.88937015,2635.1,2634.8,3.79523]
[1724285215258,2.88937015,2635.1,2634.8,7.59049]
[1724285215734,2.88937015,2635.1,2634.8,3.79523]
[1724285216059,0.49337015,2635.1,2634.9,3.7951]
[1724285216272,0.49337015,2635.1,2635.0,7.59012]
[1724285216618,0.39683636,2635.1,2635.0,7.59012]
[1724285216945,0.39683636,2635.1,2635.0,7.97042]
[1724285217256,0.39683636,2635.1,2635.0,9.20702569]
[1724285217847,0.39683636,2635.1,2635.0,11.59202569]
[1724285218060,0.39683636,2635.1,2635.0,8.82672569]
[1724285218384,0.49337397,2635.1,2635.0,8.82672569]
[1724285218753,0.39683636,2635.1,2635.0,8.82672569]
[1724285221137,0.39683636,2635.1,2635.0,11.48102569]
[1724285221383,0.39683636,2635.1,2635.0,16.5956997]
[1724285221594,0.39683636,2635.1,2635.0,21.57510173]
[1724285222093,0.39683636,2635.1,2635.0,17.78004173]
[1724285222394,0.39683636,2635.1,2635.0,21.57510173]
[1724285222553,0.39683636,2635.1,2635.0,22.36929921]
[1724285223092,0.39683636,2635.1,2635.0,21.57510173]
[1724285224340,0.39683636,2635.1,2635.0,22.05005965]
[1724285224594,0.39683636,2635.1,2635.0,22.04998141]
[1724285224943,0.39683636,2635.1,2635.0,22.84417889]
[1724285225142,0.39683636,2635.1,2635.0,22.36922097]
[1724285225360,0.39683636,2635.1,2635.0,22.84416152]
[1724285227466,0.39683636,2635.1,2635.0,22.04996404]
[1724285229387,0.39683636,2635.1,2635.0,22.04990607]
[1724285229796,0.39683636,2635.1,2635.0,18.25484607]
[1724285230007,0.39683636,2635.1,2635.0,11.82672569]
[1724285230207,0.39683636,2635.1,2635.0,10.59012]
[1724285231371,0.49376322,2635.1,2635.0,11.90976193]
[1724285231577,0.39683636,2635.1,2635.0,10.59012]
[1724285231774,0.39683636,2635.1,2635.0,12.29759099]
[1724285232645,0.39683636,2635.1,2635.0,10.59012]
[1724285232992,2.88023636,2635.1,2635.0,3.79506]
[1724285233292,2.97716322,2635.1,2635.0,3.79506]
[1724285234794,0.39683636,2635.1,2635.0,3.79506]
[1724285235681,0.39683636,2635.1,2635.0,7.59012]
[1724285235844,0.49354358,2635.1,2635.0,8.549062]
[1724285236047,0.39683636,2635.1,2635.0,8.549062]
[1724285238005,0.39683636,2635.1,2635.0,7.59012]
[1724285238299,0.49354358,2635.1,2635.0,7.59012]
[1724285239455,0.39683636,2635.1,2635.0,7.59012]
[1724285240589,0.39683636,2635.1,2635.0,3.79506]
[1724285241226,0.49354358,2635.1,2635.0,3.79506]
[1724285243128,0.49354358,2635.1,2634.8,3.79534]
[1724285243332,1.619,2635.0,2634.8,3.79526]
[1724285243641,0.49354358,2635.1,2634.8,3.79526]
[1724285243642,0.39683636,2635.1,2634.8,3.79526]
[1724285244548,0.39683636,2635.1,2634.8,7.59053]
[1724285245265,0.39683636,2635.1,2634.8,3.79526]
[1724285245543,0.39683636,2635.1,2635.0,14.07068]
[1724285245702,0.39683636,2635.1,2635.0,17.36976018]
[1724285245901,0.39683636,2635.1,2635.0,20.85218279]
[1724285246297,0.39683636,2635.1,2635.0,21.64638027]
[1724285246530,0.39683636,2635.1,2635.0,24.19846887]
[1724285247415,0.39683636,2635.1,2635.0,23.71604626]
[1724285247942,0.39683636,2635.1,2635.0,21.2417686]
[1724285248448,0.39683636,2635.1,2635.0,23.71628083]
[1724285252618,0.39683636,2635.1,2635.0,23.71574294]
[1724285254673,0.031419,2635.1,2635.0,29.2401793]
[1724285254815,2.4472,2636.1,2635.8,7.58765]
[1724285255015,0.08637968,2636.0,2635.8,3.79382]
[1724285258054,0.08637968,2636.0,2635.6,3.87000598]
[1724285258055,0.08637968,2636.0,2635.6,7.58826]
[1724285258255,2.4472,2636.1,2635.6,3.79413]
[1724285258467,0.08637968,2636.0,2635.6,3.79413]
[1724285259256,2.3732,2635.9,2635.4,7.58882]
[1724285259469,6.2533089,2635.8,2635.3,11.28462]
[1724285259642,2.3732,2635.7,2635.3,11.28462]
[1724285259853,2.3732,2635.7,2635.4,3.79446]
[1724285259854,0.08629965,2635.6,2635.4,3.79446]
[1724285260096,2.3732,2635.7,2635.4,3.79446]
[1724285260393,2.3732,2635.7,2635.4,7.5888]
[1724285260948,2.3732,2635.7,2635.4,3.79439]
[1724285262296,0.08627646,2635.6,2635.4,7.58879]
[1724285264364,0.08627646,2635.6,2635.5,3.79434]
[1724285264761,2.3732,2635.7,2635.4,3.79439]
[1724285265466,2.3732,2635.7,2635.4,7.5888]
[1724285266159,2.3732,2635.7,2635.4,3.79439]
[1724285266935,0.08627646,2635.6,2635.4,3.79439]
[1724285268017,0.08627646,2635.6,2635.4,7.5888]
[1724285268182,0.08627646,2635.6,2635.5,3.79434]
[1724285268758,2.4361,2635.9,2635.5,3.79434]
[1724285268964,0.08627646,2635.6,2635.5,3.79434]
[1724285269190,2.4361,2635.9,2635.5,3.79434]
[1724285269711,0.08646727,2635.8,2635.5,3.79434]
[1724285270211,2.4361,2635.9,2635.2,0.3803]
[1724285270420,1.619,2636.1,2635.0,10.49]
[1724285270421,6.23038,2635.6,2635.0,10.49]
[1724285270731,0.08615011,2635.5,2635.0,14.28494]
[1724285271008,2.101976,2635.5,2635.0,14.28494]
[1724285271409,2.101976,2635.5,2635.0,18.07991]
[1724285271567,2.101976,2635.5,2635.0,15.07991]
[1724285271768,2.101976,2635.5,2635.1,3.79489]
[1724285271967,0.482976,2635.5,2635.1,3.79489]
[1724285272807,0.482976,2635.5,2635.4,3.79449]
[1724285273164,0.39682589,2635.5,2635.2,3.7947]
[1724285273362,2.91896777,2635.5,2635.1,7.58964]
[1724285273608,2.83292589,2635.5,2635.1,7.58965]
[1724285273783,0.08594646,2635.4,2635.2,3.79477]
[1724285274314,0.08594646,2635.4,2635.1,7.58965]
[1724285274670,0.08594646,2635.4,2635.1,3.79482]
[1724285274874,0.08594646,2635.4,2635.1,7.58964]
[1724285275113,0.08594646,2635.4,2635.1,3.79482]
[1724285275864,0.08594646,2635.4,2635.0,7.49]
[1724285276071,2.3008,2635.3,2634.9,3.7951]
[1724285276304,0.08576719,2635.2,2634.9,3.7951]
[1724285276509,0.08576719,2635.2,2634.8,3.79535]
[1724285276674,2.3008,2635.3,2634.8,3.79535]
[1724285276885,0.08576719,2635.2,2634.8,3.79535]
[1724285277198,2.3008,2635.3,2634.8,3.79535]
[1724285277383,0.08567175,2635.1,2634.8,3.79535]
[1724285277582,0.08576719,2635.2,2634.8,3.79535]
[1724285277918,2.3008,2635.3,2634.8,3.79535]
[1724285278105,0.08567175,2635.1,2634.8,3.79535]
[1724285278409,0.08576719,2635.2,2634.8,3.79535]
[1724285278623,0.0855763,2635.0,2634.8,3.79535]
[1724285278782,2.3008,2635.3,2634.8,3.79535]
[1724285279325,0.08576719,2635.2,2634.8,3.79535]
[1724285279779,2.3008,2635.3,2634.8,3.79535]
[1724285279990,0.08567175,2635.1,2634.8,3.79535]
[1724285280285,0.0855763,2635.0,2634.8,3.79535]
[1724285280484,3.32947159,2635.3,2634.8,3.79535]
[1724285280681,0.08556229,2635.2,2634.8,3.79535]
[1724285280974,3.32947159,2635.3,2634.8,3.79535]
[1724285281169,0.08546685,2635.1,2634.7,3.79539]
[1724285281403,0.08546685,2635.1,2634.6,7.49]
[1724285281404,3.79514,2635.0,2634.6,7.49]
[1724285281621,2.4053,2634.8,2634.1,11.28628]
[1724285281924,0.08507727,2634.7,2634.2,3.79617]
[1724285282227,0.08507727,2634.7,2634.3,3.79604]
[1724285282429,0.08507727,2634.7,2634.3,7.59202]
[1724285282723,0.08487352,2634.6,2634.3,3.79598]
[1724285283016,0.08487352,2634.6,2634.5,3.79571]
[1724285283174,2.3224,2635.0,2634.5,3.79571]
[1724285283373,0.611732,2634.9,2634.5,3.79571]
[1724285283587,0.69689194,2634.9,2634.3,6.24126]
[1724285284495,0.69689194,2634.9,2634.3,3.79596]
[1724285284886,6.12319,2634.8,2634.1,13.6721]
[1724285285122,2.3277,2634.6,2634.1,7.49]
[1724285285422,3.79588,2634.5,2634.1,7.49]
[1724285285623,0.08477803,2634.5,2634.1,7.49]
[1724285287790,0.08477803,2634.5,2633.6,7.49]
[1724285287791,3.79663,2634.0,2633.6,7.49]
[1724285287995,2.4805,2633.6,2632.9,11.28803]
[1724285288198,3.79731,2633.5,2633.0,3.79794]
[1724285288501,0.0835288,2633.5,2633.0,3.7979]
[1724285288692,0.0835288,2633.5,2633.0,4.50873217]
[1724285290121,3.8807588,2633.5,2633.0,0.71083217]
[1724285290331,3.8807588,2633.5,2632.9,3.79803]
[1724285290332,7.6781188,2633.5,2632.9,3.79803]
[1724285290536,7.6781188,2633.5,2632.3,7.49]
[1724285290537,3.79757,2633.3,2632.3,7.49]
[1724285290736,2.4805,2633.4,2632.3,7.49]
[1724285290737,2.26,2632.9,2632.4,3.79877]
[1724285290899,2.26,2632.9,2632.4,1.364307]
[1724285291082,0.08192711,2632.8,2632.4,5.163087]
[1724285292421,0.08192711,2632.8,2632.5,3.79866]
[1724285292608,0.08192711,2632.8,2632.7,3.79838]
[1724285292808,2.3461,2633.1,2632.7,3.79838]
[1724285293552,2.3461,2633.1,2632.6,3.7985]
[1724285293873,3.79766,2633.2,2632.4,5.163117]
[1724285293874,2.4336,2632.9,2632.4,5.163117]
[1724285294024,0.08185355,2632.8,2632.4,3.79881]
[1724285294222,0.08185355,2632.8,2632.5,3.79865]
[1724285294441,6.06406,2633.2,2632.5,5.54111486]
[1724285294607,6.06406,2633.2,2632.5,3.79865]
[1724285294608,0.08214036,2633.1,2632.5,3.79865]
[1724285294807,6.06406,2633.2,2632.5,3.79865]
[1724285295034,0.08214036,2633.1,2632.5,3.79865]
[1724285295361,6.06406,2633.2,2632.6,3.7985]
[1724285295702,0.08201646,2633.1,2632.6,3.7985]
[1724285295905,0.08201646,2633.1,2632.6,4.27767287]
[1724285296155,0.08201646,2633.1,2632.7,3.79827]
[1724285296853,0.08192473,2633.0,2632.7,3.79827]
[1724285297071,3.79742,2633.4,2632.7,3.79827]
[1724285297218,0.08221149,2633.3,2632.7,7.59654]
[1724285297425,0.08221149,2633.3,2632.7,4.60587329]
[1724285297606,0.08221149,2633.3,2632.8,3.79814]
[1724285298357,0.08221149,2633.3,2632.9,3.79809]
[1724285298506,0.08221149,2633.3,2633.0,0.379809]
[1724285298703,2.3989,2633.5,2633.0,0.379809]
[1724285298922,0.081992,2633.2,2633.0,0.379809]
[1724285299126,6.19623,2633.5,2633.0,0.379809]
[1724285299359,0.08189641,2633.1,2632.7,10.88145329]
[1724285299507,3.7974,2633.4,2632.7,10.88145329]
[1724285299963,0.0820992,2633.3,2632.7,10.88145329]
[1724285300162,0.0820992,2633.3,2632.8,1.12617533]
[1724285301438,0.3969211,2633.2,2632.8,4.92440533]
[1724285301737,0.3969211,2633.2,2632.7,6.27557]
[1724285302058,0.3969211,2633.2,2632.7,3.79827]
[1724285302212,0.08190803,2633.1,2632.7,3.79827]
[1724285302413,0.3969211,2633.2,2632.7,3.79827]
[1724285303222,0.3969211,2633.2,2632.8,3.87409695]
[1724285303423,0.3969211,2633.2,2632.9,6.29210687]
[1724285303660,0.3969211,2633.2,2633.0,3.79783]
[1724285304215,0.08163803,2633.1,2632.8,4.5653467]
[1724285304689,0.08163803,2633.1,2632.8,0.7672367]
[1724285305015,0.3969211,2633.2,2632.8,0.7672367]
[1724285305212,0.3969211,2633.2,2632.7,3.79829]
[1724285305532,0.08164578,2633.1,2632.7,3.79829]
[1724285305719,0.08164578,2633.1,2632.7,3.79828]
[1724285306435,0.08164578,2633.1,2632.8,3.79821]
[1724285306812,0.08164578,2633.1,2633.0,3.79794]
[1724285307017,0.08164578,2633.1,2632.8,3.79821]
[1724285307018,0.08164578,2633.1,2632.8,7.59636]
[1724285307332,0.3969211,2633.2,2632.9,0.759636]
[1724285307533,0.3969211,2633.2,2632.8,7.59629]
[1724285307728,0.08166127,2633.1,2632.8,3.79814]
[1724285309133,0.08166127,2633.1,2632.8,7.59629]
[1724285310025,0.08166127,2633.1,2632.9,3.79807]
[1724285310256,0.08166127,2633.1,2632.8,3.79814]
[1724285310257,0.08166127,2633.1,2633.0,3.79794]
[1724285311460,0.08166127,2633.1,2633.0,10.646588]
[1724285311830,0.3969211,2633.2,2633.1,3.7978]
[1724285312022,0.47873218,2633.2,2633.1,3.7978]
[1724285312227,0.3969211,2633.2,2633.1,3.7978]
[1724285315734,0.3969211,2633.2,2633.0,3.79794]
[1724285315943,0.3969211,2633.2,2632.9,3.79806]
[1724285316135,0.08171549,2633.1,2632.9,4.783303]
[1724285317094,0.08171549,2633.1,2633.0,3.79794]
[1724285318375,0.08171549,2633.1,2633.0,7.59588]
[1724285318592,0.08171549,2633.1,2633.0,9.94848]
[1724285320959,0.08171549,2633.1,2633.0,7.59588]
[1724285321486,0.08171549,2633.1,2633.0,8.6965323]
[1724285323583,0.08171549,2633.1,2633.0,3.79794]
[1724285331930,0.08171549,2633.1,2632.8,3.79821]
[1724285332237,0.3969211,2633.2,2632.7,7.59658]
[1724285332410,0.3969211,2633.2,2632.8,3.0]
[1724285332570,0.08165738,2633.1,2632.7,3.79827]
[1724285333123,0.3969211,2633.2,2632.7,3.79827]
[1724285333288,0.3969211,2633.2,2632.8,3.79823]
[1724285333487,0.08162641,2633.1,2632.8,3.79823]
[1724285343860,0.08162641,2633.1,2632.9,3.79803]
[1724285344183,0.3969211,2633.2,2633.1,3.7978]
[1724285344686,0.4786586,2633.2,2633.1,3.8737473]
[1724285344883,0.4786586,2633.2,2633.1,3.7978]
[1724285345055,0.3969211,2633.2,2633.1,8.594013]
[1724285345235,0.4786586,2633.2,2633.1,12.27640931]
[1724285345434,0.3969211,2633.2,2633.1,12.27640931]
[1724285345745,0.3969211,2633.2,2633.1,12.75175741]
[1724285345945,0.3969211,2633.2,2633.1,14.25741024]
[1724285346284,0.3969211,2633.2,2633.1,12.75175269]
[1724285346450,0.3969211,2633.2,2633.1,12.27640931]
[1724285346830,0.3969211,2633.2,2633.1,12.75176093]
[1724285347032,0.3969211,2633.2,2633.1,19.3248285]
[1724285347288,6.164,2634.5,2633.9,3.79658]
[1724285347567,6.164,2634.5,2633.8,6.11119]
[1724285347568,3.87622746,2634.4,2633.8,6.11119]
[1724285347771,4.27298739,2634.4,2633.8,2.3144]
[1724285348144,4.27298739,2634.4,2633.9,0.07592402]
[1724285348568,4.27298739,2634.4,2633.8,2.3144]
[1724285348866,0.47702739,2634.4,2634.1,3.79635]
[1724285349049,0.47702739,2634.4,2634.2,3.79611]
[1724285349393,0.47702739,2634.4,2634.3,3.79607]
[1724285350899,0.47702739,2634.4,2633.8,5.3144]
[1724285350900,2.83572739,2634.4,2633.8,5.3144]
[1724285351144,2.83572739,2634.4,2633.9,3.0]
[1724285351346,6.55138993,2634.4,2633.9,3.0]
[1724285351496,0.07788983,2634.3,2633.9,3.0]
[1724285352722,0.07788983,2634.3,2633.9,6.79664]
[1724285353925,3.79623,2634.2,2633.5,6.26286]
[1724285354125,3.79623,2634.2,2633.5,3.79714]
[1724285354126,2.39134667,2634.1,2633.5,3.79714]
[1724285354330,2.39134667,2634.1,2633.3,6.26314]
[1724285354625,6.18770667,2634.1,2633.5,3.7972]
[1724285354825,2.39134667,2634.1,2633.5,3.79713]
[1724285355164,3.79651,2634.0,2633.3,3.79741]
[1724285355367,3.79669,2633.9,2633.3,3.79741]
[1724285355717,0.07756008,2633.8,2633.3,3.79741]
[1724285355942,0.07756008,2633.8,2633.4,3.79735]
[1724285356143,0.07756008,2633.8,2633.3,3.79741]
[1724285356342,3.79657,2634.0,2633.3,3.79741]
[1724285356343,0.07732837,2633.7,2633.3,3.79741]
[1724285356743,0.07732837,2633.7,2632.8,5.62511971]
[1724285356744,6.2524,2633.5,2632.6,1.19548702]
[1724285356926,0.07723282,2633.6,2631.9,6.17034]
[1724285356927,3.79855,2632.6,2631.9,6.17034]
[1724285357144,3.894,2632.7,2631.9,6.17034]
[1724285357145,0.07618126,2632.5,2631.9,6.17034]
[1724285357463,2.3584,2633.3,2631.9,6.17034]
[1724285357464,7.69198,2633.0,2632.1,3.79923]
[1724285357760,0.769198,2632.9,2632.3,3.79894]
[1724285358318,0.07635917,2632.8,2632.3,3.79894]
[1724285358745,0.07635917,2632.8,2632.5,3.79865]
[1724285359263,0.07604942,2632.7,2632.5,3.79865]
[1724285359428,3.79795,2633.0,2632.3,3.79886]
[1724285359763,3.79795,2633.0,2632.3,3.79884]
[1724285360112,0.07624065,2632.9,2632.3,3.79884]
[1724285360550,0.07624065,2632.9,2632.3,7.59768]
[1724285360733,0.07624065,2632.9,2632.4,3.79877]
[1724285361544,0.07624065,2632.9,2632.5,3.79865]
[1724285361746,0.07624065,2632.9,2632.8,7.59646]
[1724285361967,3.894,2633.6,2632.8,3.79812]
[1724285361968,3.79724,2633.5,2632.8,3.79812]
[1724285362117,3.79724,2633.5,2632.8,7.59626]
[1724285362118,4.19119974,2633.5,2632.8,7.59626]
[1724285362321,5.17734174,2633.5,2632.8,3.79812]
[1724285362615,0.07661736,2633.4,2632.8,3.79812]
[1724285363158,4.27078289,2633.4,2632.8,3.79812]
[1724285366318,3.79782,2633.1,2632.6,11.28846]
[1724285366518,3.79782,2633.1,2632.7,3.0]
[1724285366713,0.07623502,2633.0,2632.7,3.0]
[1724285366960,7.76827502,2633.0,2632.6,7.49]
[1724285367164,11.56633502,2633.0,2632.6,7.49]
[1724285367463,8.92490852,2633.0,2632.6,7.49]
[1724285367833,5.03090852,2633.0,2632.6,7.49]
[1724285368983,3.79812,2632.9,2632.4,3.7987]
[1724285369471,3.87436455,2632.9,2632.4,3.7987]
[1724285369624,3.87436455,2632.9,2632.2,9.43249]
[1724285369827,3.87436455,2632.9,2632.3,3.0]
[1724285370069,4.98396836,2632.9,2632.3,6.79887]
[1724285371379,1.18584836,2632.9,2632.3,6.79887]
[1724285372181,1.18584836,2632.9,2632.4,3.79873]
[1724285372326,0.07624455,2632.9,2632.4,3.79871]
[1724285373373,0.07624455,2632.9,2632.4,7.59742]
[1724285373733,0.07624455,2632.9,2632.5,3.79865]
[1724285375681,0.07624455,2632.9,2632.6,3.79841]
[1724285376934,0.07624455,2632.9,2632.4,7.59743]
[1724285377134,0.07624455,2632.9,2632.4,7.59742]
[1724285377487,0.07624455,2632.9,2632.5,3.79866]
[1724285378272,0.39676172,2632.8,2632.5,3.79866]
[1724285378474,0.47240456,2632.8,2632.5,3.79866]
[1724285379275,0.47240456,2632.8,2632.6,3.7985]
[1724285381582,0.47240456,2632.8,2632.4,3.79869]
[1724285381583,0.47240456,2632.8,2632.4,7.5974]
[1724285381881,0.47240456,2632.8,2632.4,3.79869]
[1724285382549,0.47240456,2632.8,2632.4,7.59741]
[1724285382752,0.47240456,2632.8,2632.5,3.79865]
[1724285388991,0.47240456,2632.8,2632.6,3.79851]
[1724285389156,0.47240456,2632.8,2632.7,11.39514]
[1724285389157,0.03909585,2632.8,2632.7,11.39514]